bitfinex/quotes_BTCUSD_20260126
["timestamp","ask_amount","ask_price","bid_price","bid_amount"]
[1769405457318,0.04859452,87878.0,87866.0,0.11489487]
[1769405457506,0.04859452,87878.0,87861.0,0.74690741]
[1769405457741,0.0568977,87877.0,87861.0,0.74690741]
[1769405457882,0.05689964,87875.0,87861.0,0.74690741]
[1769405458080,0.00046709,87879.0,87861.0,0.74690741]
[1769405458081,0.06828195,87871.0,87861.0,0.74690741]
[1769405458291,0.0113807,87868.0,87861.0,0.74690741]
[1769405458919,0.00516426,87879.0,87861.0,0.74690741]
[1769405459125,0.05180103,87879.0,87862.0,0.17492]
[1769405459551,0.05080103,87879.0,87862.0,0.92182741]
[1769405459764,0.01137993,87874.0,87862.0,0.92182741]
[1769405459974,0.01138005,87873.0,87862.0,0.92182741]
[1769405460186,0.0160771,87874.0,87862.0,0.92182741]
[1769405460601,0.01138018,87872.0,87862.0,0.92182741]
[1769405460870,0.0160771,87874.0,87858.0,0.16045487]
[1769405460871,0.00469717,87874.0,87858.0,0.11489487]
[1769405461095,0.11529057,87873.0,87863.0,0.17492]
[1769405461327,0.11998774,87872.0,87863.0,0.17492]
[1769405461746,0.1363375,87872.0,87863.0,0.17492]
[1769405461954,0.0113807,87868.0,87863.0,0.17492]
[1769405462107,0.01138083,87867.0,87863.0,0.17492]
[1769405462313,0.0113807,87868.0,87863.0,0.17492]
[1769405462509,0.0113807,87868.0,87863.0,0.00492]
[1769405462742,0.01138096,87866.0,87863.0,0.00492]
[1769405462955,0.01138122,87864.0,87858.0,0.04556]
[1769405463152,0.01138096,87866.0,87854.0,0.74690741]
[1769405463316,0.01138122,87864.0,87854.0,0.74690741]
[1769405463931,0.01138122,87864.0,87835.0,0.01138498]
[1769405463932,0.011382,87858.0,87832.0,0.0002317]
[1769405464140,0.011382,87858.0,87837.0,0.1085507]
[1769405464141,0.01138239,87855.0,87837.0,0.1085507]
[1769405464384,0.01138252,87854.0,87840.0,0.80199912]
[1769405464759,0.01138265,87853.0,87840.0,0.80199912]
[1769405465174,0.01138278,87852.0,87840.0,0.69344842]
[1769405465380,0.01138303,87850.0,87834.0,0.69344842]
[1769405465605,0.0113829,87851.0,87836.0,0.69344842]
[1769405465839,0.01138278,87852.0,87836.0,0.80199912]
[1769405465999,0.11739232,87857.0,87838.0,0.69344842]
[1769405466202,0.01138265,87853.0,87840.0,0.001]
[1769405466406,0.11739232,87857.0,87840.0,0.00113999]
[1769405466611,0.11739232,87857.0,87840.0,0.79595032]
[1769405468361,0.11739232,87857.0,87840.0,0.79695032]
[1769405468362,0.01138265,87853.0,87840.0,0.79695032]
[1769405468564,0.01138278,87852.0,87840.0,0.79695032]
[1769405468776,0.01138329,87848.0,87840.0,0.1035019]
[1769405468993,0.01138329,87848.0,87840.0,0.00113999]
[1769405469392,0.01138303,87850.0,87840.0,0.00013999]
[1769405469599,0.01138303,87850.0,87840.0,0.00113999]
[1769405470186,0.10601019,87853.0,87840.0,0.00113999]
[1769405470395,0.47555345,87880.0,87841.0,0.69344842]
[1769405470396,0.10601019,87860.0,87841.0,0.69344842]
[1769405470573,0.10601019,87859.0,87841.0,0.69344842]
[1769405470777,0.01138252,87854.0,87841.0,0.69344842]
[1769405470961,0.01138265,87853.0,87841.0,0.69344842]
[1769405471161,0.011382,87858.0,87843.0,0.69344842]
[1769405471368,0.01138239,87855.0,87843.0,0.80199912]
[1769405471566,0.011382,87858.0,87843.0,0.80199912]
[1769405472202,0.001,87853.0,87844.0,0.01039876]
[1769405472773,0.011382,87858.0,87844.0,0.01039876]
[1769405472774,0.01138226,87856.0,87844.0,0.01039876]
[1769405472966,0.01138239,87855.0,87844.0,0.01039876]
[1769405473611,0.01138265,87853.0,87844.0,0.01039876]
[1769405473815,0.01138239,87855.0,87844.0,0.01039876]
[1769405475126,0.01138265,87853.0,87844.0,0.01039876]
[1769405475333,0.01138278,87852.0,87844.0,0.01039876]
[1769405475963,0.01138239,87855.0,87844.0,0.01039876]
[1769405476382,0.00469717,87854.0,87844.0,0.01039876]
[1769405476583,0.00469717,87854.0,87843.0,0.80199912]
[1769405476738,0.11070736,87858.0,87843.0,0.80199912]
[1769405476941,0.01138329,87848.0,87843.0,0.69344842]
[1769405477121,0.0113829,87851.0,87843.0,0.69344842]
[1769405477945,0.00469717,87853.0,87844.0,0.01115515]
[1769405478558,0.67934236,87859.0,87844.0,0.01115515]
[1769405478754,0.67934236,87859.0,87844.0,0.01738311]
[1769405479160,0.01138226,87856.0,87844.0,0.01738311]
[1769405479564,0.01138239,87855.0,87844.0,0.01738311]
[1769405479955,0.01138226,87856.0,87844.0,0.01738311]
[1769405482080,0.01238226,87856.0,87844.0,0.01738311]
[1769405483507,0.001,87856.0,87844.0,0.01738311]
[1769405483708,0.00469717,87855.0,87843.0,0.69344842]
[1769405483993,0.1199706,87855.0,87840.0,0.00013999]
[1769405484729,0.0389098,87854.0,87840.0,0.00013999]
[1769405484953,0.00469717,87853.0,87840.0,0.00013999]
[1769405485358,0.00469717,87854.0,87840.0,0.00013999]
[1769405485879,0.0113829,87851.0,87840.0,0.00013999]
[1769405486019,0.0160802,87850.0,87840.0,0.00013999]
[1769405486220,0.01138316,87849.0,87840.0,0.00013999]
[1769405486450,0.00469717,87850.0,87840.0,0.00013999]
[1769405486689,0.00469717,87851.0,87840.0,0.00013999]
[1769405487051,0.00469717,87851.0,87840.0,0.01009599]
[1769405487902,0.00469717,87851.0,87840.0,0.01009638]
[1769405488309,0.01138265,87853.0,87840.0,0.01009638]
[1769405488506,0.00469717,87852.0,87840.0,0.01009638]
[1769405489158,0.0909326,87864.0,87841.0,0.74961666]
[1769405489398,0.11376073,87863.0,87850.0,0.50954524]
[1769405489610,0.00014,87870.0,87854.0,0.1133227]
[1769405489761,0.00014,87870.0,87856.0,0.1133227]
[1769405489963,0.01152044,87870.0,87857.0,0.86293936]
[1769405490158,0.01138057,87869.0,87858.0,0.8359106]
[1769405490363,0.0113807,87868.0,87858.0,0.8359106]
[1769405490741,0.01138057,87869.0,87858.0,0.8359106]
[1769405490946,0.01152044,87870.0,87858.0,0.8359106]
[1769405492609,0.01152044,87870.0,87858.0,0.74961666]
[1769405492827,0.00014,87870.0,87858.0,0.74961666]
[1769405493012,0.00014,87870.0,87858.0,0.86293936]
[1769405494405,0.00014,87870.0,87859.0,0.10344941]
[1769405494616,0.10957783,87884.0,87862.0,0.71001637]
[1769405494813,0.00489037,87882.0,87865.0,0.81346578]
[1769405495229,0.01137954,87877.0,87865.0,0.81346578]
[1769405495873,0.01137941,87878.0,87865.0,0.81346578]
[1769405496074,0.01137954,87877.0,87865.0,0.81346578]
[1769405496843,0.01157209,87882.0,87867.0,0.81346578]
[1769405496991,0.01157209,87882.0,87867.0,0.88066871]
[1769405497193,0.01157209,87882.0,87867.0,0.81346578]
[1769405497632,0.00469717,87881.0,87867.0,0.81346578]
[1769405498057,0.00046709,87881.0,87869.0,0.71001637]
[1769405498370,0.00046709,87881.0,87871.0,0.81346578]
[1769405498570,0.09379251,87888.0,87871.0,0.08134658]
[1769405498719,0.10528218,87888.0,87872.0,0.81346578]
[1769405499078,0.01137824,87887.0,87872.0,0.81346578]
[1769405499352,0.00011156,87888.0,87872.0,0.71001637]
[1769405499626,0.00011156,87888.0,87874.0,0.81346578]
[1769405499854,0.00011156,87888.0,87875.0,0.08134658]
[1769405500075,0.001,87881.0,87875.0,0.08134658]
[1769405500537,0.00011156,87888.0,87875.0,0.08134658]
[1769405500764,0.00011156,87888.0,87875.0,0.79136295]
[1769405506496,0.00111156,87888.0,87875.0,0.79136295]
[1769405507450,0.00011156,87888.0,87875.0,0.08134658]
[1769405507629,0.00011156,87888.0,87875.0,0.01975388]
[1769405516218,0.00011156,87888.0,87867.0,0.10344941]
[1769405516559,0.78732746,87887.0,87868.0,0.72866714]
[1769405516802,0.05689562,87881.0,87868.0,0.71001637]
[1769405516978,0.01137928,87879.0,87869.0,0.80306601]
[1769405519262,0.01137889,87882.0,87869.0,0.80406601]
[1769405519670,0.01137889,87882.0,87869.0,0.80306601]
[1769405520016,0.01137889,87882.0,87869.0,0.80406601]
[1769405520633,0.00011156,87888.0,87870.0,0.02276089]
[1769405520855,0.00011156,87888.0,87871.0,0.03951399]
[1769405521061,0.00011156,87888.0,87872.0,0.02276037]
[1769405521257,0.10957783,87887.0,87872.0,0.02276037]
[1769405521464,0.10957783,87887.0,87872.0,0.73277674]
[1769405521661,0.10957783,87887.0,87872.0,0.71001637]
[1769405521879,0.10957783,87887.0,87873.0,0.08539798]
[1769405522082,0.10957783,87887.0,87874.0,0.02275986]
[1769405522485,0.11057783,87887.0,87874.0,0.02275986]
[1769405522682,0.001,87887.0,87874.0,0.02275986]
[1769405522879,0.00011156,87888.0,87874.0,0.73277623]
[1769405523086,0.00011156,87888.0,87877.0,0.10344941]
[1769405523321,0.001,87887.0,87877.0,0.09939755]
[1769405523505,0.001,87887.0,87878.0,0.77853681]
[1769405523718,0.001,87887.0,87878.0,0.75580357]
[1769405523921,0.001,87887.0,87879.0,0.02271524]
[1769405524141,0.001,87887.0,87880.0,0.0891209]
[1769405524323,0.00011156,87888.0,87881.0,0.01595241]
[1769405524761,0.00111156,87888.0,87875.0,0.0132926]
[1769405525003,0.00111156,87888.0,87876.0,0.00255446]
[1769405525173,0.00011156,87888.0,87876.0,0.00255446]
[1769405525353,0.00011156,87888.0,87876.0,0.08965928]
[1769405525556,0.00111156,87888.0,87876.0,0.08965928]
[1769405525929,0.00011156,87888.0,87876.0,0.08965928]
[1769405526142,0.00011156,87888.0,87876.0,0.75835803]
[1769405526335,0.00111156,87888.0,87876.0,0.75580357]
[1769405526535,0.00111156,87888.0,87875.0,0.0132926]
[1769405526536,0.00111156,87888.0,87878.0,0.75580357]
[1769405526740,0.00111156,87888.0,87879.0,0.00221838]
[1769405526942,0.00111156,87888.0,87880.0,0.00325294]
[1769405527144,0.00111156,87888.0,87879.0,0.00325294]
[1769405527640,0.00011156,87888.0,87879.0,0.00325294]
[1769405527908,0.00111156,87888.0,87880.0,0.08584541]
[1769405528109,0.00111156,87888.0,87881.0,0.00325289]
[1769405528307,0.00011156,87888.0,87881.0,0.00325289]
[1769405529009,0.00011156,87888.0,87879.0,0.00351899]
[1769405530409,0.11389612,87887.0,87879.0,0.02275856]
[1769405530614,0.00011156,87888.0,87879.0,0.02275856]
[1769405530810,0.11389733,87887.0,87879.0,0.02275856]
[1769405531019,0.00011156,87888.0,87879.0,0.02275856]
[1769405531316,0.11389738,87887.0,87879.0,0.02275856]
[1769405531528,0.00011156,87888.0,87879.0,0.02275856]
[1769405531691,0.11389756,87887.0,87879.0,0.11055453]
[1769405531886,0.00011156,87888.0,87879.0,0.11055453]
[1769405532093,0.11389756,87887.0,87879.0,0.11055453]
[1769405532289,0.00011156,87888.0,87879.0,0.11055453]
[1769405532591,0.11389782,87887.0,87879.0,0.11055453]
[1769405532792,0.00011156,87888.0,87880.0,0.0504086]
[1769405532992,0.00011156,87888.0,87882.0,0.75580357]
[1769405533194,0.0002025,87895.0,87882.0,0.85520112]
[1769405533442,0.00024915,87895.0,87882.0,0.85520112]
[1769405534208,0.01137747,87893.0,87883.0,0.09939755]
[1769405534413,0.01137747,87893.0,87883.0,0.85520112]
[1769405534896,0.01137747,87893.0,87883.0,0.94072123]
[1769405535326,0.06851242,87895.0,87883.0,0.94072123]
[1769405535541,0.01162636,87895.0,87883.0,0.94072123]
[1769405535714,0.1544834,87913.0,87883.0,0.94072123]
[1769405535715,0.001,87893.0,87883.0,0.94072123]
[1769405535954,0.001,87893.0,87884.0,0.85520112]
[1769405536157,0.001,87893.0,87884.0,0.90788558]
[1769405536364,0.001,87893.0,87884.0,0.85520112]
[1769405536365,0.01137759,87892.0,87884.0,0.85520112]
[1769405536537,0.01137772,87891.0,87884.0,0.85520112]
[1769405537199,0.01137772,87891.0,87883.0,4.665e-05]
[1769405538867,0.01137759,87892.0,87883.0,4.665e-05]
[1769405542040,0.81781665,87897.0,87883.0,4.665e-05]
[1769405542262,0.8061304,87897.0,87883.0,4.665e-05]
[1769405542472,0.70016488,87897.0,87883.0,4.665e-05]
[1769405542651,0.8061304,87895.0,87883.0,4.665e-05]
[1769405542860,0.01168625,87894.0,87883.0,4.665e-05]
[1769405543436,0.8061304,87895.0,87883.0,4.665e-05]
[1769405543641,0.01137798,87889.0,87883.0,4.665e-05]
[1769405543843,0.01137785,87890.0,87883.0,4.665e-05]
[1769405544201,0.01137747,87893.0,87883.0,4.665e-05]
[1769405544406,0.01137759,87892.0,87883.0,4.665e-05]
[1769405544618,0.01137772,87891.0,87883.0,4.665e-05]
[1769405545559,0.01137759,87892.0,87883.0,4.665e-05]
[1769405545741,0.11387724,87891.0,87883.0,4.665e-05]
[1769405545921,0.11387724,87890.0,87883.0,4.665e-05]
[1769405546131,0.01137747,87893.0,87883.0,4.665e-05]
[1769405546332,0.11387642,87892.0,87883.0,4.665e-05]
[1769405546544,0.11387642,87891.0,87883.0,4.665e-05]
[1769405546711,0.09110568,87901.0,87885.0,0.10663886]
[1769405546916,0.11387427,87900.0,87885.0,0.10663886]
[1769405547099,0.11387427,87899.0,87885.0,0.12939353]
[1769405547294,0.11387427,87898.0,87885.0,0.12939353]
[1769405547576,0.11387427,87897.0,87885.0,0.12939353]
[1769405547780,0.11387427,87896.0,87885.0,0.12939353]
[1769405547902,0.01137772,87891.0,87885.0,0.12939353]
[1769405548112,0.01137798,87889.0,87885.0,0.12939353]
[1769405548309,0.01137798,87889.0,87886.0,0.02275675]
[1769405548567,0.70016488,87898.0,87886.0,0.02275675]
[1769405548817,0.01137772,87891.0,87886.0,0.02275675]
[1769405550867,0.001,87898.0,87886.0,0.02275675]
[1769405551088,0.11388139,87897.0,87886.0,0.02275675]
[1769405551307,0.11388139,87896.0,87886.0,0.02275675]
[1769405551497,0.11388139,87895.0,87886.0,0.02275675]
[1769405551726,0.11388139,87894.0,87886.0,0.02275675]
[1769405551931,0.11388139,87893.0,87886.0,0.02275675]
[1769405552083,0.11388139,87892.0,87886.0,0.02275675]
[1769405552294,0.001,87898.0,87886.0,0.02275675]
[1769405552652,0.11389283,87897.0,87886.0,0.02275675]
[1769405552858,0.11389283,87896.0,87886.0,0.02275675]
[1769405553063,0.11389283,87895.0,87886.0,0.02275675]
[1769405553279,0.11389283,87894.0,87886.0,0.02275675]
[1769405553462,0.11389283,87893.0,87886.0,0.02275675]
[1769405553912,0.001,87898.0,87886.0,0.02275675]
[1769405553913,0.11389283,87892.0,87886.0,0.02275675]
[1769405554120,0.001,87894.0,87886.0,0.02275675]
[1769405554343,0.11389155,87893.0,87886.0,0.02275675]
[1769405554510,0.11389155,87892.0,87886.0,0.02275675]
[1769405554695,0.001,87894.0,87886.0,0.02275675]
[1769405555021,0.11389269,87893.0,87886.0,0.02275675]
[1769405555218,0.11389269,87892.0,87886.0,0.02275675]
[1769405555382,0.01137708,87896.0,87886.0,0.02275675]
[1769405555585,0.11389284,87895.0,87886.0,0.02275675]
[1769405555839,0.11389284,87894.0,87886.0,0.02275675]
[1769405556024,0.11389284,87893.0,87886.0,0.02275675]
[1769405556243,0.11389284,87892.0,87886.0,0.02275675]
[1769405556447,0.01137708,87896.0,87886.0,0.02275675]
[1769405556659,0.11389308,87895.0,87886.0,0.02275675]
[1769405556865,0.11389308,87894.0,87886.0,0.02275675]
[1769405557072,0.11389308,87893.0,87886.0,0.02275675]
[1769405557289,0.01137708,87896.0,87886.0,0.02275675]
[1769405557524,0.11389159,87895.0,87886.0,0.02275675]
[1769405557769,0.11389159,87894.0,87886.0,0.02275675]
[1769405557992,0.11389159,87893.0,87886.0,0.02275675]
[1769405558211,0.01137708,87896.0,87886.0,0.02275675]
[1769405558438,0.11388976,87895.0,87886.0,0.02275675]
[1769405558679,0.11388976,87894.0,87886.0,0.02275675]
[1769405558902,0.11388976,87893.0,87886.0,0.02275675]
[1769405559111,0.01137708,87896.0,87886.0,0.02275675]
[1769405559345,0.11388881,87895.0,87886.0,0.02178659]
[1769405559527,0.11388881,87894.0,87886.0,0.02178659]
[1769405559756,0.01137708,87896.0,87886.0,0.02178659]
[1769405559959,0.11388881,87895.0,87886.0,0.02178659]
[1769405560159,0.02940334,87901.0,87886.0,0.02178659]
[1769405560939,0.02940334,87901.0,87887.0,0.08665435]
[1769405561264,0.70016488,87902.0,87888.0,0.02081593]
[1769405561870,0.01137734,87894.0,87888.0,0.02081593]
[1769405562321,0.01137734,87894.0,87886.0,0.11665412]
[1769405562322,0.01137759,87892.0,87886.0,0.11665412]
[1769405562561,0.01137747,87893.0,87886.0,0.11665412]
[1769405562770,0.01137785,87890.0,87886.0,0.11665412]
[1769405563001,0.01137785,87890.0,87883.0,4.665e-05]
[1769405564099,0.05689162,87887.0,87883.0,4.665e-05]
[1769405564308,0.06827027,87886.0,87883.0,4.665e-05]
[1769405564522,0.01137811,87888.0,87883.0,4.665e-05]
[1769405564698,0.06826897,87888.0,87883.0,0.17155532]
[1769405564899,0.01137837,87886.0,87883.0,0.096855]
[1769405565281,0.06826934,87888.0,87883.0,0.096855]
[1769405565484,0.01137759,87892.0,87883.0,0.096855]
[1769405565708,0.75170831,87906.0,87886.0,0.74695653]
[1769405566007,0.75170831,87906.0,87888.0,0.09680835]
[1769405567518,0.01137721,87895.0,87888.0,0.09680835]
[1769405567682,0.01137708,87896.0,87888.0,0.09680835]
[1769405568020,0.01137695,87897.0,87888.0,0.09680835]
[1769405568217,0.01137682,87898.0,87888.0,0.09680835]
[1769405568453,0.01137695,87897.0,87889.0,0.1603126]
[1769405568658,0.01137682,87898.0,87889.0,0.1603126]
[1769405568861,0.001,87896.0,87889.0,0.1603126]
[1769405569864,0.01137669,87899.0,87889.0,0.1603126]
[1769405570077,0.01137669,87899.0,87889.0,0.09680835]
[1769405570432,0.0001597,87904.0,87889.0,0.84376488]
[1769405570635,0.0001597,87904.0,87890.0,0.74695653]
[1769405570840,0.00594266,87918.0,87893.0,0.74695653]
[1769405570841,0.75170831,87917.0,87893.0,0.74695653]
[1769405571038,0.02843623,87916.0,87895.0,0.09680835]
[1769405571277,0.02843623,87916.0,87896.0,0.09680835]
[1769405571534,0.05687791,87908.0,87897.0,0.09680835]
[1769405571727,0.001,87904.0,87897.0,0.09680835]
[1769405571974,0.001,87904.0,87898.0,0.74695653]
[1769405572127,0.001,87904.0,87901.0,0.09680835]
[1769405572464,0.001,87904.0,87902.0,0.09680835]
[1769405572993,0.01137565,87907.0,87902.0,0.09680835]
[1769405575040,0.01137552,87908.0,87902.0,0.09680835]
[1769405575682,0.0003597,87914.0,87902.0,0.09680835]
[1769405577140,0.0003597,87914.0,87903.0,0.74695653]
[1769405577347,0.028633,87926.0,87907.0,0.74695653]
[1769405577557,0.028633,87926.0,87908.0,0.74695653]
[1769405577683,0.0002,87926.0,87909.0,0.09680835]
[1769405577875,0.001,87914.0,87911.0,0.74695653]
[1769405578081,0.001,87914.0,87912.0,0.09680835]
[1769405578292,0.0002,87926.0,87912.0,0.09680835]
[1769405578500,0.0002,87926.0,87912.0,0.18118484]
[1769405579058,0.0002,87926.0,87912.0,0.08437649]
[1769405579341,0.01137436,87917.0,87914.0,0.09680835]
[1769405579547,0.01137449,87916.0,87914.0,0.09680835]
[1769405580371,0.09668324,87916.0,87914.0,0.09680835]
[1769405580576,0.03981072,87916.0,87914.0,0.09680835]
[1769405580788,0.0113741,87919.0,87914.0,0.09680835]
[1769405580999,0.0113741,87919.0,87916.0,0.09680835]
[1769405581669,0.01137307,87927.0,87916.0,0.09680835]
[1769405581881,0.01151119,87927.0,87918.0,0.74695653]
[1769405582027,0.0113732,87926.0,87919.0,0.09680835]
[1769405582235,0.01137345,87924.0,87919.0,0.09680835]
[1769405582434,0.01137358,87923.0,87919.0,0.09680835]
[1769405583053,0.01137371,87922.0,87919.0,0.09680835]
[1769405583257,0.0113732,87926.0,87919.0,0.18118484]
[1769405583454,0.00013812,87927.0,87919.0,0.18118484]
[1769405584025,0.01151119,87927.0,87919.0,0.18118484]
[1769405584242,0.0113732,87926.0,87919.0,0.18118484]
[1769405584657,0.01137345,87924.0,87919.0,0.08437649]
[1769405584878,0.00013812,87927.0,87917.0,0.74738464]
[1769405585088,0.01151119,87927.0,87918.0,0.10653289]
[1769405585951,0.00013812,87927.0,87918.0,0.10653289]
[1769405586150,0.01151119,87927.0,87918.0,0.10653289]
[1769405587185,0.01151119,87927.0,87919.0,0.08539175]
[1769405587394,0.00013812,87927.0,87919.0,0.08539175]
[1769405587804,0.00013812,87927.0,87920.0,0.10653289]
[1769405588029,0.00013812,87927.0,87921.0,0.74738464]
[1769405588235,0.00013812,87927.0,87922.0,0.74738464]
[1769405588441,0.00013812,87927.0,87923.0,0.10653289]
[1769405589059,0.0002,87929.0,87924.0,0.74738464]
[1769405589280,0.0002,87929.0,87926.0,0.10653289]
[1769405589488,0.00557242,87932.0,87927.0,0.74738464]
[1769405589710,0.01137255,87931.0,87928.0,0.10653289]
[1769405589910,0.01137242,87932.0,87928.0,0.10653289]
[1769405590253,0.01137229,87933.0,87928.0,0.10653289]
[1769405590465,0.01137242,87932.0,87928.0,0.74738464]
[1769405590665,0.01137242,87932.0,87929.0,0.18128517]
[1769405591073,0.01237242,87932.0,87929.0,0.10653289]
[1769405592100,0.02137281,87929.0,87926.0,0.00013812]
[1769405592425,0.0568647,87928.0,87926.0,0.00013812]
[1769405592628,0.05686535,87927.0,87926.0,0.00013812]
[1769405594114,0.01137449,87916.0,87904.0,0.10653289]
[1769405594295,0.01137462,87915.0,87904.0,0.10653289]
[1769405594539,0.01137501,87912.0,87904.0,0.10653289]
[1769405594744,0.01137514,87911.0,87904.0,0.10653289]
[1769405594950,0.01137514,87911.0,87905.0,0.08627769]
[1769405595119,0.01137501,87912.0,87905.0,0.08627769]
[1769405595940,0.01137488,87913.0,87905.0,0.08627769]
[1769405596148,0.01137501,87912.0,87905.0,0.08627769]
[1769405596399,0.01137488,87913.0,87905.0,0.08627769]
[1769405596633,0.001,87912.0,87905.0,0.08627769]
[1769405596878,0.01137514,87911.0,87905.0,0.05171769]
[1769405597084,0.06260362,87946.0,87899.0,0.01104238]
[1769405597085,0.1748,87925.0,87899.0,0.01104238]
[1769405597282,0.1748,87925.0,87893.0,0.0001668]
[1769405597283,0.1748,87925.0,87896.0,0.11323752]
[1769405597284,0.0113763,87902.0,87896.0,0.11323752]
[1769405597483,0.01137617,87903.0,87896.0,0.11323752]
[1769405597736,0.0113763,87902.0,87896.0,0.11323752]
[1769405597972,0.01137604,87904.0,87896.0,0.11323752]
[1769405598180,0.0113763,87902.0,87896.0,0.11323752]
[1769405598354,0.01137604,87904.0,87896.0,0.11323752]
[1769405598968,0.01137617,87903.0,87896.0,0.11323752]
[1769405599147,0.0113763,87902.0,87896.0,0.11323752]
[1769405599353,0.01137617,87903.0,87896.0,0.11323752]
[1769405599552,0.05687893,87906.0,87896.0,0.11323752]
[1769405599733,0.01137604,87904.0,87896.0,0.11323752]
[1769405599957,0.01137501,87912.0,87896.0,0.11323752]
[1769405600276,0.01137514,87911.0,87898.0,0.84003436]
[1769405600492,0.01137527,87910.0,87899.0,0.01214372]
[1769405601212,0.01137552,87908.0,87899.0,0.01214372]
[1769405601428,0.01137552,87908.0,87898.0,0.84003436]
[1769405601429,0.01137565,87907.0,87898.0,0.84003436]
[1769405601562,0.01137578,87906.0,87898.0,0.84003436]
[1769405601992,0.01137565,87907.0,87898.0,0.11323752]
[1769405602825,0.01137565,87907.0,87899.0,0.0097693]
[1769405603031,0.01137539,87909.0,87899.0,0.0097693]
[1769405604126,0.01137565,87907.0,87898.0,0.11423752]
[1769405604787,0.01137578,87906.0,87893.0,0.0001668]
[1769405605002,0.01137604,87904.0,87893.0,0.0001668]
[1769405605875,0.01137656,87900.0,87893.0,0.0001668]
[1769405606081,0.01137669,87899.0,87893.0,0.0011668]
[1769405606320,0.01137669,87899.0,87888.0,0.01204537]
[1769405606321,0.01137695,87897.0,87888.0,0.01204537]
[1769405606486,0.01137669,87899.0,87874.0,0.11323752]
[1769405606487,0.00883319,87888.0,87874.0,0.11323752]
[1769405606714,0.59556189,87887.0,87874.0,0.01090915]
[1769405606920,0.59556189,87887.0,87873.0,0.01107604]
[1769405607293,0.59556189,87887.0,87873.0,0.0001668]
[1769405607474,0.59556189,87887.0,87873.0,0.00021345]
[1769405607688,0.60694013,87887.0,87873.0,0.00021345]
[1769405608993,0.59556189,87887.0,87873.0,0.00021345]
[1769405609197,0.10792866,87904.0,87879.0,0.11323752]
[1769405609453,0.10792866,87904.0,87884.0,0.11323752]
[1769405609678,0.60693908,87908.0,87880.0,0.53130386]
[1769405609679,0.0001668,87908.0,87887.0,0.72679684]
[1769405609815,0.0001668,87908.0,87893.0,0.72679684]
[1769405610015,0.0001668,87908.0,87890.0,0.5090759]
[1769405610016,0.0001668,87908.0,87897.0,0.11323752]
[1769405610269,0.0001668,87908.0,87898.0,0.74902023]
[1769405610405,0.0001668,87908.0,87898.0,0.72679684]
[1769405611242,0.0001668,87908.0,87887.0,0.72679684]
[1769405611449,0.0001668,87908.0,87891.0,0.72679684]
[1769405611653,0.0001668,87908.0,87895.0,0.11323752]
[1769405612013,0.0001668,87908.0,87896.0,0.03527642]
[1769405612739,0.0001668,87908.0,87885.0,0.11323752]
[1769405612740,0.60677254,87906.0,87885.0,0.11323752]
[1769405612931,0.59539676,87906.0,87887.0,0.11323752]
[1769405613167,0.59539676,87906.0,87895.0,0.001]
[1769405613712,0.60677254,87906.0,87895.0,0.001]
[1769405614349,0.44570541,87906.0,87890.0,0.00092623]
[1769405614782,0.01137591,87905.0,87896.0,0.001]
[1769405615087,0.01137591,87905.0,87890.0,0.00092623]
[1769405615433,0.01137591,87905.0,87890.0,0.00192623]
[1769405615835,0.01137591,87905.0,87890.0,0.00092623]
[1769405616037,0.01137604,87904.0,87890.0,0.00567819]
[1769405616249,0.01137604,87904.0,87890.0,0.02375571]
[1769405616452,0.01137591,87905.0,87890.0,0.02375571]
[1769405616908,0.01137617,87903.0,87890.0,0.02375571]
[1769405617078,0.11930431,87907.0,87890.0,0.02375571]
[1769405617079,0.01137682,87898.0,87890.0,0.001]
[1769405617286,0.01137669,87899.0,87890.0,0.001]
[1769405617452,0.01137682,87898.0,87883.0,0.00478644]
[1769405617658,0.12607546,87898.0,87883.0,0.00478644]
[1769405617914,0.12607546,87898.0,87890.0,0.001]
[1769405618304,0.11469864,87898.0,87883.0,0.02275752]
[1769405618464,0.11469864,87898.0,87883.0,0.02375752]
[1769405618667,0.01137643,87901.0,87883.0,0.87606006]
[1769405618934,0.01137643,87901.0,87883.0,0.85330254]
[1769405619148,0.01137643,87901.0,87883.0,0.85230254]
[1769405619939,0.01137669,87899.0,87883.0,0.85230254]
[1769405620315,0.01137669,87899.0,87884.0,0.00115875]
[1769405620527,0.01137656,87900.0,87884.0,0.00115875]
[1769405621140,0.01137669,87899.0,87884.0,0.00115875]
[1769405621337,0.01137682,87898.0,87884.0,0.00115875]
[1769405621614,0.01137682,87898.0,87883.0,0.85230254]
[1769405621810,0.01137695,87897.0,87884.0,0.001]
[1769405622046,0.01137682,87898.0,87884.0,0.73730528]
[1769405622219,0.01137695,87897.0,87884.0,0.73630528]
[1769405622417,0.01137682,87898.0,87884.0,0.73630528]
[1769405622708,0.01137682,87898.0,87884.0,0.73730528]
[1769405622857,0.01137721,87895.0,87884.0,0.001]
[1769405623076,0.55721075,87893.0,87884.0,0.001]
[1769405623425,0.01137772,87891.0,87884.0,0.001]
[1769405623828,0.01137772,87891.0,87880.0,0.17484]
[1769405624042,0.01137824,87887.0,87880.0,0.17484]
[1769405624227,0.43113464,87887.0,87880.0,0.17484]
[1769405624428,0.55721152,87887.0,87884.0,0.001]
[1769405624790,0.01137837,87886.0,87873.0,0.00021345]
[1769405624989,0.0113785,87885.0,87873.0,0.00021345]
[1769405625345,0.01137863,87884.0,87873.0,0.00021345]
[1769405625490,0.01137889,87882.0,87873.0,0.00021345]
[1769405625693,0.01137876,87883.0,87873.0,0.00021345]
[1769405626477,0.01137889,87882.0,87873.0,0.00021345]
[1769405626609,0.01137915,87880.0,87873.0,0.00021345]
[1769405626811,0.01137902,87881.0,87873.0,0.00021345]
[1769405627220,0.01137915,87880.0,87873.0,0.00021345]
[1769405627425,0.01137889,87882.0,87873.0,0.00121345]
[1769405627938,0.01137902,87881.0,87873.0,0.00021345]
[1769405628142,0.55721217,87882.0,87873.0,0.00021345]
[1769405628336,0.11469864,87882.0,87873.0,0.00021345]
[1769405628739,0.44251275,87888.0,87874.0,0.00051205]
[1769405629512,0.01137824,87887.0,87874.0,0.00051205]
[1769405629714,0.01137837,87886.0,87873.0,0.00021345]
[1769405629913,0.01137824,87887.0,87873.0,0.00021345]
[1769405630160,0.43113464,87888.0,87873.0,0.00021345]
[1769405630542,0.43113464,87888.0,87874.0,0.00099113]
[1769405630748,0.43113464,87888.0,87874.0,0.00199113]
[1769405631201,0.44251275,87888.0,87874.0,0.00199113]
[1769405631514,0.01137798,87889.0,87874.0,0.00099113]
[1769405632312,0.01137798,87889.0,87874.0,0.00199113]
[1769405632711,0.12607649,87890.0,87874.0,0.00199113]
[1769405632915,0.01137798,87889.0,87874.0,0.00199113]
[1769405633667,0.01137798,87889.0,87874.0,0.00099113]
[1769405633829,0.01237798,87889.0,87874.0,0.00099113]
[1769405635081,0.01406983,87888.0,87874.0,0.00099113]
[1769405635401,0.02544794,87888.0,87874.0,0.00099113]
[1769405635639,0.001,87889.0,87875.0,0.73630528]
[1769405635853,0.001,87889.0,87878.0,0.11599726]
[1769405636057,0.001,87889.0,87880.0,0.85230254]